{"text_format":"1","workbook":"xlsx","n_sheets":3,"sheets":["Фикс.список","Нефикс.список","Нефикс.список с пробелами"],"not_rendered":{"charts":0,"images":0,"macros":1,"external_links":0,"defined_names":0,"comments":0,"pivot_tables":0},"unopened":[],"bounds":{"document_bytes":16777216,"sheet_cells":100000,"rows_first":2000,"rows_last":500,"rows_between":2000,"halvings":0,"cell_chars":16384,"cell_head_chars":4096},"cells_cut":0,"cells_raw":0,"read":"whole","date_system":"1900"}

{"sheet":"Фикс.список","index":0,"n_rows":9,"n_cols":4,"rows_kept":9,"cut":false,"hidden":false,"merged":[]}
["Список",null,null,"Список наоборот"]
["Саша",null,null,{"$f":"INDEX($A$2:$A$9,ROW($A$9)-ROW(A2)+1)","v":"Ира"}]
["Маша",null,null,"Федя"]
["Петя",null,null,"Коля"]
["Вася",null,null,"Лена"]
["Лена",null,null,"Вася"]
["Коля",null,null,"Петя"]
["Федя",null,null,"Маша"]
["Ира",null,null,"Саша"]

{"sheet":"Нефикс.список","index":1,"n_rows":25,"n_cols":13,"rows_kept":25,"cut":false,"hidden":false,"merged":[]}
["Список",null,null,"Список наоборот"]
["Саша",null,null,{"$f":"INDEX(A:A,COUNTA(A:A)-ROW(A1)+1)","v":"Ира"}]
["Маша",null,null,{"$f":"INDEX(A:A,COUNTA(A:A)-ROW(A2)+1)","v":"Федя"}]
["Петя",null,null,"Коля"]
["Вася",null,null,"Лена"]
["Лена",null,null,"Вася"]
["Коля",null,null,"Петя"]
["Федя",null,null,"Маша"]
["Ира",null,null,"Саша"]
[]
[]
[]
[]
[]
[]
[]
[]
[]
[]
[]
[]
[]
[]
[]
[null,null,null,null,null,null,null,null,null,null,null,null," "]

{"sheet":"Нефикс.список с пробелами","index":2,"n_rows":27,"n_cols":17,"rows_kept":27,"cut":false,"hidden":false,"merged":[]}
["Список",null,null,"Список наоборот"]
["Саша",null,null,{"$f":"INDEX($A$2:$A$100,MAX(($A$2:$A$100<>\"\")*ROW($A$2:$A$100))-ROW(A2)+1)","v":"Ира"}]
["Маша",null,null,{"$f":"INDEX($A$2:$A$100,MAX(($A$2:$A$100<>\"\")*ROW($A$2:$A$100))-ROW(A3)+1)","v":"Федя"}]
[null,null,null,{"$f":"INDEX($A$2:$A$100,MAX(($A$2:$A$100<>\"\")*ROW($A$2:$A$100))-ROW(A4)+1)","v":0}]
["Вася",null,null,{"$f":"INDEX($A$2:$A$100,MAX(($A$2:$A$100<>\"\")*ROW($A$2:$A$100))-ROW(A5)+1)","v":"Лена"}]
["Лена",null,null,{"$f":"INDEX($A$2:$A$100,MAX(($A$2:$A$100<>\"\")*ROW($A$2:$A$100))-ROW(A6)+1)","v":"Вася"}]
[null,null,null,{"$f":"INDEX($A$2:$A$100,MAX(($A$2:$A$100<>\"\")*ROW($A$2:$A$100))-ROW(A7)+1)","v":0}]
["Федя",null,null,{"$f":"INDEX($A$2:$A$100,MAX(($A$2:$A$100<>\"\")*ROW($A$2:$A$100))-ROW(A8)+1)","v":"Маша"}]
["Ира",null,null,{"$f":"INDEX($A$2:$A$100,MAX(($A$2:$A$100<>\"\")*ROW($A$2:$A$100))-ROW(A9)+1)","v":"Саша"}]
[]
[]
[]
[]
[]
[]
[]
[]
[]
[]
[]
[]
[]
[]
[]
[null,null,null,null,null,null,null,null,null,null,null,null," "]
[]
[null,null,null,null,null,null,null,null,null,null,null,null,null,null,null,null," "]